bitfinex-derivatives/quotes_SOLF0:USTF0_20241107
["timestamp","ask_amount","ask_price","bid_price","bid_amount"]
[1731001845753,1.2478,195.52,195.44,5.83119843]
[1731001845955,7.87184171,195.46,195.42,2.5555]
[1731001846153,7.87184171,195.46,195.43,5.83308562]
[1731001846451,7.87184171,195.46,195.44,1.27786279]
[1731001846653,7.87184171,195.45,195.41,0.26359]
[1731001846843,7.87184171,195.45,195.42,5.83477198]
[1731001847044,7.87184171,195.45,195.43,1.27790628]
[1731001847249,7.87184171,195.45,195.41,0.26359]
[1731001847443,7.87184171,195.45,195.42,5.83529548]
[1731001847647,7.87184171,195.45,195.43,1.27793061]
[1731001847846,7.87184171,195.45,195.41,2.81929]
[1731001848044,7.87184171,195.43,195.42,5.83488878]
[1731001848648,7.87184171,195.44,195.42,5.83488878]
[1731001848848,7.87184171,195.44,195.43,1.27792377]
[1731001849553,1.2299,195.5,195.41,0.26359]
[1731001849755,7.5352,195.49,195.41,0.26359]
[1731001849955,7.5352,195.49,195.42,1.27801416]
[1731001850155,7.5352,195.49,195.41,0.26359]
[1731001851644,4.9805,195.49,195.41,0.26359]
[1731001851848,7.87184171,195.42,195.4,2.5558]
[1731001852049,7.87184171,195.4,195.39,2.556]
[1731001852252,7.87184171,195.4,195.39,3.83412848]
[1731001852444,7.5353,195.49,195.39,3.83412848]
[1731001852445,7.87184171,195.43,195.39,3.83412848]
[1731001852659,7.5353,195.49,195.37,2.5562]
[1731001852660,7.87184171,195.42,195.37,2.5562]
[1731001852952,7.87184171,195.42,195.38,1.27821248]
[1731001853152,7.87184171,195.42,195.37,2.5562]
[1731001853345,4.9805,195.49,195.38,1.27821399]
[1731001853655,7.87184171,195.42,195.39,1.27811964]
[1731001853849,7.87184171,195.42,195.35,7.87184171]
[1731001854049,7.87184171,195.42,195.37,2.5562]
[1731001855346,7.87184171,195.4,195.35,7.87184171]
[1731001855543,7.87184171,195.4,195.34,3.7]
[1731001855544,7.87184171,195.4,195.36,1.27821787]
[1731001855747,7.87184171,195.4,195.37,1.27821787]
[1731001855957,7.87184171,195.39,195.35,2.5565]
[1731001856151,7.87184171,195.39,195.36,1.27825034]
[1731001856353,7.87184171,195.37,195.33,0.23462]
[1731001856560,3.7,195.43,195.33,0.23462]
[1731001856764,1.2923,195.42,195.2,2.4094]
[1731001857065,1.2923,195.42,195.2,2.5585]
[1731001857248,1.2923,195.42,195.14,1.2213]
[1731001857249,1.2205,195.41,195.18,2.60045483]
[1731001857559,1.2205,195.41,195.14,1.2213]
[1731001857560,19.21039366,195.41,195.14,1.2213]
[1731001857756,7.87184171,195.27,195.22,7.87184171]
[1731001857947,7.87184171,195.27,195.15,2.5129801]
[1731001858155,7.87184171,195.21,195.15,2.5129801]
[1731001858352,3.7778,195.3,195.16,10.43084171]
[1731001858565,7.87184171,195.25,195.18,7.87184171]
[1731001858753,7.87184171,195.25,195.16,2.559]
[1731001859058,7.87184171,195.23,195.17,7.87184171]
[1731001859356,12.2847875,195.26,195.16,2.559]
[1731001859554,12.2847875,195.26,195.17,2.5588]
[1731001859859,12.2847875,195.28,195.15,3.7]
[1731001860062,1.2205,195.3,195.2,2.5585]
[1731001860262,1.2205,195.3,195.19,12.2847875]
[1731001860558,12.2847875,195.34,195.25,2.5578]
[1731001861053,1.2481,195.38,195.24,12.2847875]
[1731001861259,12.2847875,195.36,195.26,2.5576]
[1731001861860,12.2847875,195.36,195.29,2.5573]
[1731001862063,1.2445,195.38,195.26,12.2847875]
[1731001862560,12.2847875,195.36,195.23,3.7]
[1731001863068,12.2847875,195.36,195.23,15.9847875]
[1731001863560,12.2847875,195.34,195.23,15.9847875]
[1731001863758,12.2847875,195.34,195.22,3.7]
[1731001864263,12.2847875,195.34,195.24,2.5579]
[1731001864459,12.2847875,195.34,195.22,3.7]
[1731001865362,12.2847875,195.34,195.23,2.5581]
[1731001865564,12.2847875,195.31,195.21,12.2847875]
[1731001865763,12.2847875,195.31,195.21,15.9847875]
[1731001866560,12.2847875,195.31,195.21,3.7]
[1731001866756,12.2847875,195.31,195.21,2.5583]
[1731001866952,12.2847875,195.31,195.19,3.7]
[1731001866953,1.2036,195.3,195.19,3.7]
[1731001867157,1.2036,195.3,195.22,2.5581]
[1731001867558,1.2036,195.3,195.21,12.2847875]
[1731001867757,1.2036,195.3,195.25,2.5577]
[1731001867963,12.2847875,195.34,195.25,2.5577]
[1731001869666,12.2847875,195.34,195.26,2.5577]
[1731001870255,12.2847875,195.34,195.23,12.2847875]
[1731001870460,12.2847875,195.34,195.25,2.5578]
[1731001870860,12.2847875,195.34,195.23,12.2847875]
[1731001870861,12.2847875,195.34,195.26,2.5577]
[1731001871255,12.2847875,195.34,195.23,12.2847875]
[1731001871658,12.2847875,195.34,195.21,12.2847875]
[1731001872457,12.2847875,195.29,195.24,2.5579]
[1731001873063,12.2847875,195.32,195.2,3.7]
[1731001873265,12.2847875,195.32,195.25,2.5577]
[1731001874072,12.2847875,195.32,195.21,15.9847875]
[1731001876283,12.2847875,195.32,195.26,2.5576]
[1731001876461,3.7599,195.37,195.21,15.9847875]
[1731001876661,12.2847875,195.35,195.21,15.9847875]
[1731001877765,12.2847875,195.35,195.28,2.5574]
[1731001878960,1.2036,195.37,195.3,2.5571]
[1731001879567,1.2036,195.37,195.34,2.5566]
[1731001880264,1.2036,195.37,195.32,2.5568]
[1731001881469,1.2445,195.38,195.34,2.5566]
[1731001882264,1.2445,195.38,195.33,2.5567]
[1731001882774,1.2445,195.38,195.3,12.2847875]
[1731001882775,1.2445,195.38,195.34,2.5565]
[1731001882970,1.2445,195.38,195.3,12.2847875]
[1731001883372,1.2445,195.38,195.33,2.5567]
[1731001883576,1.2445,195.38,195.3,12.2847875]
[1731001884769,1.2445,195.38,195.29,3.56]
[1731001885172,1.2445,195.38,195.32,2.5568]
[1731001885372,1.2445,195.38,195.29,3.56]
[1731001886169,1.2445,195.38,195.32,2.5568]
[1731001886474,1.2445,195.38,195.29,15.8447875]
[1731001886876,1.2445,195.38,195.33,2.5564]
[1731001887180,1.2445,195.38,195.29,15.8447875]
[1731001887771,1.2445,195.38,195.31,2.5567]
[1731001887968,1.2445,195.38,195.29,15.8447875]
[1731001889079,1.2445,195.38,195.31,2.5568]
[1731001889279,12.2847875,195.37,195.29,3.56]
[1731001889784,12.2847875,195.37,195.31,2.5568]
[1731001891077,1.2445,195.38,195.31,2.5568]
[1731001891668,1.2445,195.38,195.29,3.56]
[1731001892075,12.2847875,195.37,195.28,3.56]
[1731001892775,14.8407875,195.37,195.28,6.1171]
[1731001892975,14.8407875,195.37,195.28,3.56]
[1731001893678,14.8407875,195.37,195.29,2.5569]
[1731001894282,12.2847875,195.37,195.28,3.56]
[1731001894875,12.2847875,195.37,195.28,15.8447875]
[1731001896385,12.2847875,195.37,195.31,2.5568]
[1731001896976,2.5562,195.36,195.29,2.557]
[1731001897279,2.5562,195.36,195.25,14.84585966]
[1731001897481,14.8408875,195.37,195.29,2.557]
[1731001898189,2.5562,195.36,195.28,2.5572]
[1731001898781,14.8408875,195.37,195.29,2.557]
[1731001899287,14.8408875,195.37,195.25,2.60520425]
[1731001899288,2.5561,195.36,195.28,2.5571]
[1731001899486,12.2847875,195.37,195.25,14.88999175]
[1731001900577,12.2847875,195.37,195.24,3.56]
[1731001900776,12.2847875,195.37,195.24,15.8447875]
[1731001901883,2.5564,195.35,195.27,2.5572]
[1731001905087,16.0851875,195.38,195.3,2.5569]
[1731001905288,13.5292875,195.38,195.24,3.56]
[1731001905477,13.5292875,195.38,195.26,12.2847875]
[1731001905682,2.556,195.37,195.28,2.5571]
[1731001906288,13.5292875,195.38,195.28,2.5571]
[1731001906289,2.5561,195.36,195.28,2.5571]
[1731001906479,12.2847875,195.35,195.24,3.56]
[1731001906779,12.2847875,195.35,195.24,15.8447875]
[1731001907285,12.2847875,195.35,195.3,2.5571]
[1731001907486,12.2847875,195.35,195.24,15.8447875]
[1731001907889,12.2847875,195.35,195.28,2.5573]
[1731001908287,12.2847875,195.35,195.24,3.56]
[1731001908691,12.2847875,195.35,195.24,15.8447875]
[1731001909495,12.2847875,195.35,195.28,2.5573]
[1731001911789,12.2847875,195.35,195.29,2.5572]
[1731001913397,7.86251423,195.33,195.29,2.5572]
[1731001914089,7.86251423,195.32,195.27,2.5574]
[1731001915793,7.86251423,195.32,195.26,10.42011423]
[1731001915989,7.86251423,195.28,195.16,34.89217244]
[1731001916293,7.86251423,195.28,195.23,7.86251423]
[1731001917197,7.86251423,195.27,195.23,7.86251423]
[1731001917589,7.86251423,195.27,195.23,10.42041423]
[1731001917793,7.86251423,195.28,195.23,10.42041423]
[1731001918396,2.4373,195.31,195.23,7.86251423]
[1731001918599,7.86251423,195.29,195.23,7.86251423]
[1731001919099,7.86251423,195.29,195.25,2.5578]
[1731001919602,7.86251423,195.3,195.25,10.42021423]
[1731001919797,7.86251423,195.3,195.25,7.86251423]
[1731001919998,7.86251423,195.3,195.26,10.42011423]
[1731001920800,2.4373,195.31,195.27,2.5575]
[1731001921105,10.29981423,195.31,195.27,2.5575]
[1731001921397,9.10551423,195.31,195.26,10.42011423]
[1731001921597,9.10551423,195.31,195.26,7.86251423]
[1731001921801,7.86251423,195.32,195.28,7.86251423]
[1731001922196,7.86251423,195.32,195.27,10.41991423]
[1731001922997,2.5565,195.35,195.27,7.86251423]
[1731001923197,7.86251423,195.32,195.28,2.5574]
[1731001923402,7.86251423,195.32,195.27,7.86251423]
[1731001923699,4.6968,195.37,195.3,7.86251423]
[1731001923901,1.2968,195.37,195.32,7.86251423]
[1731001924102,7.86251423,195.38,195.33,7.86251423]
[1731001924300,2.4346,195.43,195.37,7.86251423]
[1731001924603,7.86251423,195.45,195.4,7.86251423]
[1731001925601,1.2007,195.47,195.4,7.86251423]
[1731001925902,7.86251423,195.47,195.36,3.4]
[1731001926212,7.86251423,195.47,195.42,7.86251423]
[1731001926506,7.86251423,195.48,195.42,7.86251423]
[1731001927298,7.86251423,195.48,195.42,10.41811423]
[1731001927505,14.70291152,195.5,195.42,2.5556]
[1731001928698,2.4346,195.5,195.43,2.5554]
[1731001928903,2.4346,195.5,195.38,12.26831152]
[1731001929297,1.234,195.5,195.41,12.26831152]
[1731001929499,1.2469,195.55,195.44,12.26831152]
[1731001929699,1.2469,195.55,195.47,2.5548]
[1731001931401,1.2469,195.55,195.49,2.5546]
[1731001931708,1.2644,195.58,195.47,12.26831152]
[1731001932709,1.2644,195.58,195.5,2.5545]
[1731001932906,1.2644,195.58,195.49,3.4]
[1731001933311,1.2644,195.58,195.51,2.5543]
[1731001933709,1.2644,195.58,195.49,5.9545]
[1731001934407,1.2644,195.58,195.49,3.4]
[1731001935717,3.8179,195.58,195.49,5.9546]
[1731001936017,1.2644,195.58,195.49,5.9546]
[1731001936219,2.5536,195.57,195.49,5.9546]
[1731001936513,1.2644,195.58,195.49,5.9546]
[1731001936719,1.2644,195.58,195.5,2.5544]
[1731001937720,2.5539,195.55,195.49,3.4]
[1731001937923,1.2644,195.58,195.49,3.4]
[1731001938421,12.26831152,195.54,195.42,12.26831152]
[1731001938822,14.82201152,195.56,195.45,12.26831152]
[1731001939424,12.26831152,195.56,195.48,2.5548]
[1731001939720,12.26831152,195.56,195.47,3.4]
[1731001940724,14.82201152,195.56,195.48,2.5548]
[1731001941426,12.26831152,195.56,195.47,3.4]
[1731001941722,1.2548,195.57,195.49,2.5546]
[1731001942226,3.8084,195.57,195.47,15.66831152]
[1731001942816,3.8085,195.57,195.48,2.5547]
[1731001943930,3.8085,195.57,195.47,15.66831152]
[1731001943931,2.5538,195.56,195.47,18.22321152]
[1731001944323,1.2548,195.57,195.47,18.22321152]
[1731001944526,3.8084,195.57,195.47,18.22321152]
[1731001944921,1.2644,195.58,195.47,15.66831152]
[1731001945127,3.8179,195.58,195.49,2.5546]
[1731001945631,1.2644,195.58,195.5,2.5545]
[1731001946222,3.8179,195.58,195.5,2.5545]
[1731001946830,3.8179,195.58,195.49,2.5546]
[1731001947232,1.2644,195.58,195.47,15.66831152]
[1731001947428,1.2644,195.58,195.5,2.5545]
[1731001948234,3.4,195.61,195.49,12.26831152]
[1731001948428,13.51761152,195.62,195.49,12.26831152]
[1731001948429,2.5532,195.6,195.49,12.26831152]
[1731001948726,13.51761152,195.62,195.54,2.5539]
[1731001949528,7.85015385,195.6,195.54,10.40405385]
[1731001949933,2.5229,195.66,195.56,7.85015385]
[1731001950122,7.85015385,195.61,195.56,7.85015385]
[1731001951528,2.5528,195.63,195.56,10.40385385]
[1731001951832,11.75796069,195.67,195.61,7.85015385]
[1731001952037,11.75796069,195.67,195.63,7.85015385]
[1731001952741,11.75796069,195.67,195.63,10.40295385]
[1731001953040,11.75796069,195.67,195.63,7.85015385]
[1731001953337,19.60811454,195.67,195.62,7.85015385]
[1731001953541,11.75796069,195.67,195.6,12.25524624]
[1731001953737,11.75796069,195.67,195.62,2.5528]
[1731001954033,11.75796069,195.67,195.6,12.25524624]
[1731001954434,11.75796069,195.67,195.59,3.4]
[1731001954828,2.5526,195.65,195.59,3.4]
[1731001955228,12.25524624,195.66,195.56,15.65524624]
[1731001955633,12.25524624,195.66,195.56,3.4]
[1731001956142,2.5529,195.63,195.56,3.4]
[1731001956444,12.25524624,195.66,195.56,3.4]
[1731001956739,2.5529,195.63,195.56,5.9537]
[1731001957840,12.25524624,195.66,195.55,2.5538]
[1731001957841,2.5529,195.62,195.55,2.5538]
[1731001958136,2.5529,195.62,195.53,15.65524624]
[1731001959330,2.5528,195.63,195.53,15.65524624]
[1731001959532,1.2746,195.65,195.56,12.25524624]
[1731001959736,11.75796069,195.67,195.58,12.25524624]
[1731001960040,11.75796069,195.67,195.6,2.5532]
[1731001960241,11.75796069,195.67,195.53,5.90159899]
[1731001960437,14.31036069,195.67,195.59,2.5533]
[1731001960638,14.31036069,195.67,195.56,12.25524624]
[1731001960839,14.31036069,195.67,195.59,2.5533]
[1731001961336,2.5526,195.65,195.57,2.5536]
[1731001962238,11.75796069,195.67,195.58,2.5533]
[1731001962638,11.75796069,195.67,195.56,12.25524624]
[1731001962831,24.01320693,195.67,195.56,14.80884624]
[1731001963031,24.01320693,195.67,195.56,12.25524624]
[1731001963230,2.5526,195.65,195.56,12.25524624]
[1731001963634,24.01320693,195.67,195.56,12.25524624]
[1731001963943,2.5527,195.64,195.56,14.80894624]
[1731001964540,2.5527,195.64,195.57,2.5535]
[1731001965935,24.01320693,195.67,195.56,12.25524624]
[1731001966136,1.2616,195.63,195.54,12.25524624]
[1731001966534,2.553,195.62,195.55,2.5538]
[1731001966739,1.2616,195.63,195.55,2.5538]
[1731001967246,3.8144,195.63,195.54,12.25524624]
[1731001967445,3.8144,195.63,195.56,2.5536]
[1731001968540,1.2616,195.63,195.56,2.5536]
[1731001970935,1.2616,195.63,195.56,14.80884624]
[1731001971140,1.2616,195.63,195.56,12.25524624]
[1731001971348,3.8144,195.63,195.56,12.25524624]
[1731001972149,2.5531,195.61,195.56,12.25524624]
[1731001972347,2.5531,195.61,195.54,12.25524624]
[1731001973042,12.25524624,195.61,195.48,2.7443]
[1731001973342,12.25524624,195.59,195.49,3.38]
[1731001974240,2.5537,195.56,195.49,3.38]
[1731001974444,12.25524624,195.59,195.49,3.38]
[1731001975045,12.25524624,195.59,195.5,2.5545]
[1731001975438,7.85140399,195.58,195.53,7.85140399]
[1731001975640,10.40490399,195.58,195.53,7.85140399]
[1731001976441,10.40500399,195.57,195.49,3.38]
[1731001976644,1.2616,195.63,195.56,7.85140399]
[1731001976847,1.2616,195.63,195.59,7.85140399]
[1731001977443,1.2616,195.63,195.58,5.9334]
[1731001977644,1.2616,195.63,195.58,3.38]
[1731001978243,1.2616,195.63,195.58,15.6399871]
[1731001978749,1.2845,195.66,195.61,2.5531]
[1731001979852,3.837,195.66,195.6,2.5532]
[1731001981644,1.2845,195.66,195.6,2.5532]
[1731001982947,3.8369,195.66,195.6,2.5532]
[1731001983342,3.8369,195.66,195.58,15.6399871]
[1731001983343,11.75796069,195.67,195.58,12.2599871]
[1731001983545,11.75796069,195.67,195.64,2.5526]
[1731001984451,11.75796069,195.67,195.61,12.2599871]
[1731001984652,11.75796069,195.67,195.63,2.5528]
[1731001985646,11.75796069,195.67,195.61,14.8129871]
[1731001985850,11.75796069,195.67,195.6,3.38]
[1731001986449,11.75796069,195.67,195.61,12.2599871]
[1731001986945,11.75796069,195.67,195.56,36.16349267]
[1731001987149,11.75796069,195.67,195.57,12.2599871]
[1731001988459,11.75796069,195.67,195.58,3.38]
[1731001988848,11.75796069,195.67,195.6,2.5531]
[1731001989658,14.31026069,195.67,195.6,2.5531]
[1731001989959,14.31026069,195.67,195.58,3.38]
[1731001990155,14.31026069,195.67,195.59,2.5533]
[1731001991559,11.75796069,195.67,195.58,3.38]
[1731001992154,14.31026069,195.67,195.58,5.9334]
[1731001993251,14.31026069,195.67,195.58,3.38]
[1731001993455,14.31026069,195.67,195.6,12.2599871]
[1731001993456,11.75796069,195.67,195.6,12.2599871]
[1731001994653,11.75796069,195.67,195.61,2.553]
[1731001994853,11.75796069,195.67,195.6,12.2599871]
[1731001995055,14.31026069,195.67,195.6,12.2599871]
[1731001996163,11.75796069,195.67,195.6,12.2599871]
[1731001996465,11.75796069,195.67,195.6,14.8130871]
[1731001996662,11.75796069,195.67,195.6,12.2599871]
[1731001997155,11.75796069,195.67,195.62,2.5529]
[1731001997759,11.75796069,195.67,195.56,32.78349267]
[1731001997967,2.5526,195.65,195.56,45.04347977]
[1731001998152,11.75796069,195.67,195.56,45.04347977]
[1731001998357,11.75796069,195.67,195.56,48.42347977]
[1731001998557,14.31026069,195.67,195.59,2.5533]
[1731001999465,2.5524,195.66,195.61,7.84483022]
[1731001999864,11.75796069,195.67,195.56,36.16349267]
[1731002000072,2.5524,195.66,195.61,7.84483022]
[1731002001366,11.75796069,195.67,195.61,7.84483022]
[1731002001561,14.31026069,195.67,195.61,7.84483022]
[1731002001867,11.75796069,195.67,195.61,7.84483022]
[1731002002869,11.75796069,195.67,195.61,10.39783022]
[1731002003565,11.75796069,195.67,195.63,7.84483022]
[1731002004670,11.75796069,195.67,195.56,36.16349267]
[1731002004873,11.75796069,195.67,195.62,7.84483022]
[1731002006266,11.75796069,195.67,195.63,2.5528]
[1731002006664,11.75796069,195.67,195.62,7.84483022]
[1731002006869,14.31026069,195.67,195.6,2.5531]
[1731002007169,14.31026069,195.67,195.62,7.84483022]
[1731002007562,2.5525,195.65,195.58,5.9334]
[1731002007766,11.75796069,195.67,195.6,7.84483022]
[1731002007967,11.75796069,195.67,195.62,7.84483022]
[1731002008468,11.75796069,195.67,195.58,3.38]
[1731002008668,11.75796069,195.67,195.63,7.84483022]
[1731002009868,11.75796069,195.67,195.63,10.39763022]
[1731002010177,11.75796069,195.67,195.65,7.84483022]
[1731002011273,11.75796069,195.67,195.64,2.5526]
[1731002011573,11.75796069,195.67,195.64,7.84483022]
[1731002012368,11.75796069,195.67,195.56,32.78349267]
[1731002012573,19.60279091,195.67,195.62,7.84483022]
[1731002012775,11.75796069,195.67,195.62,7.84483022]
[1731002013774,11.75796069,195.67,195.6,2.5531]
[1731002013972,11.75796069,195.67,195.63,7.84483022]
[1731002016582,11.75796069,195.67,195.66,10.39723022]
[1731002017677,11.75796069,195.67,195.61,3.38]
[1731002017883,11.75796069,195.67,195.65,7.84483022]
[1731002019583,11.75796069,195.67,195.66,7.84483022]
[1731002020587,11.75796069,195.67,195.65,10.39723022]
[1731002020881,11.75796069,195.67,195.66,7.84483022]
[1731002024198,11.75796069,195.67,195.65,7.84483022]
[1731002024801,19.60279091,195.67,195.6,7.84483022]
[1731002024997,7.84483022,195.65,195.6,7.84483022]
[1731002025503,3.7813,195.66,195.61,7.84483022]
[1731002026203,1.2288,195.66,195.63,7.84483022]
[1731002027002,1.2288,195.66,195.57,3.38]
[1731002027299,1.2288,195.66,195.61,7.84483022]
[1731002027706,1.2288,195.66,195.61,10.39783022]
[1731002028505,1.2288,195.66,195.62,2.5529]
[1731002028901,11.62613022,195.66,195.6,7.84483022]
[1731002029105,11.62613022,195.66,195.57,3.38]
[1731002029106,9.07363022,195.66,195.57,3.38]
[1731002029417,1.2288,195.66,195.6,7.84483022]
[1731002030110,3.7813,195.66,195.6,7.84483022]
[1731002030710,11.75796069,195.67,195.64,7.84483022]
[1731002030901,11.75796069,195.67,195.66,10.39723022]
[1731002031101,11.75796069,195.67,195.66,7.84483022]
[1731002032209,11.75796069,195.67,195.65,2.5524]
[1731002032410,11.75796069,195.67,195.66,7.84483022]
[1731002035304,11.75796069,195.67,195.66,10.39723022]
[1731002035915,11.75796069,195.67,195.66,7.84483022]
[1731002037416,11.75796069,195.67,195.58,1.2855]
[1731002037417,11.75796069,195.67,195.61,3.38]
[1731002037607,11.75796069,195.67,195.65,7.84483022]
[1731002037808,11.75796069,195.67,195.61,3.38]
[1731002037809,11.75796069,195.67,195.62,2.5529]
[1731002038004,11.75796069,195.67,195.65,7.84483022]
[1731002039111,11.75796069,195.67,195.63,2.5528]
[1731002039412,11.75796069,195.67,195.59,2.5533]
[1731002039413,2.5524,195.66,195.59,2.5533]
[1731002039611,10.39723022,195.66,195.61,7.84483022]
[1731002039811,7.84483022,195.66,195.61,7.84483022]
[1731002040817,11.75796069,195.67,195.63,7.84483022]
[1731002041018,14.31026069,195.67,195.63,7.84483022]
[1731002043214,14.31026069,195.67,195.62,7.84483022]
[1731002043412,11.75796069,195.67,195.62,7.84483022]
[1731002043618,11.75796069,195.67,195.62,10.39773022]
[1731002044018,11.75796069,195.67,195.62,7.84483022]
[1731002044215,19.60279091,195.67,195.62,7.84483022]
[1731002044411,11.75796069,195.67,195.62,10.39773022]
[1731002044613,7.84483022,195.64,195.53,3.75163128]
[1731002044816,7.84483022,195.63,195.57,7.84483022]
[1731002045324,2.5059,195.66,195.61,7.84483022]
[1731002046725,2.5526,195.65,195.61,7.84483022]
[1731002047120,5.0583,195.66,195.61,7.84483022]
[1731002047323,2.5059,195.66,195.61,7.84483022]
[1731002047519,11.75796069,195.67,195.63,7.84483022]
[1731002047822,11.75796069,195.67,195.65,7.84483022]
[1731002049322,11.75796069,195.67,195.64,10.39753022]
[1731002049530,11.75796069,195.67,195.65,7.84483022]
[1731002049724,11.75796069,195.67,195.65,10.39733022]
[1731002051530,11.75796069,195.67,195.65,7.84483022]
[1731002053026,11.75796069,195.67,195.62,5.9328]
[1731002053325,11.75796069,195.67,195.66,7.84483022]
[1731002054937,11.75796069,195.67,195.64,7.84483022]
[1731002057933,11.75796069,195.67,195.62,3.38]
[1731002057934,11.75796069,195.67,195.62,11.22483022]
[1731002058137,7.84483022,195.66,195.62,3.38]
[1731002058837,7.84483022,195.66,195.61,7.84483022]
[1731002061041,11.75796069,195.67,195.61,10.39783022]
[1731002061241,11.75796069,195.67,195.61,7.84483022]
[1731002061630,7.84483022,195.66,195.58,3.36]
[1731002061936,19.60279091,195.67,195.61,7.84483022]
[1731002062238,22.15509091,195.67,195.61,7.84483022]
[1731002062432,11.75796069,195.67,195.61,7.84483022]
[1731002062633,19.60279091,195.67,195.61,7.84483022]
[1731002062836,11.75796069,195.67,195.61,7.84483022]
[1731002063034,11.75796069,195.67,195.62,7.84483022]
[1731002064545,11.75796069,195.67,195.63,2.5528]
[1731002065242,11.75796069,195.67,195.61,2.553]
[1731002065447,7.84483022,195.66,195.58,3.36]
[1731002065644,7.84483022,195.66,195.6,7.84483022]
[1731002065839,7.84483022,195.66,195.61,4.56166838]
[1731002066142,11.75796069,195.67,195.62,7.84483022]
[1731002066930,7.84483022,195.66,195.6,7.84483022]
[1731002067637,7.84483022,195.66,195.6,10.39803022]
[1731002067839,7.84483022,195.66,195.6,7.84483022]
[1731002068442,7.84483022,195.66,195.62,7.84483022]
[1731002070339,14.31006069,195.67,195.6,2.553]
[1731002070539,14.31006069,195.67,195.61,7.84483022]
[1731002070740,7.84483022,195.66,195.61,7.84483022]
[1731002071142,10.39703022,195.66,195.61,7.84483022]
[1731002071740,11.75796069,195.67,195.62,7.84483022]
[1731002071940,11.75796069,195.67,195.66,7.84483022]
[1731002072248,11.75796069,195.67,195.65,7.84483022]
[1731002072646,11.75796069,195.67,195.65,10.39713022]
[1731002072943,11.75796069,195.67,195.65,7.84483022]
[1731002074244,11.75796069,195.67,195.63,5.9126]
[1731002074435,11.75796069,195.67,195.64,4.55945425]
[1731002074641,11.75796069,195.67,195.65,4.55945425]
[1731002074845,11.75796069,195.67,195.63,13.75743022]
[1731002075045,11.75796069,195.67,195.64,4.5594577]
[1731002075239,11.75796069,195.67,195.65,4.5594577]
[1731002075440,11.75796069,195.67,195.63,11.20483022]
[1731002075641,11.75796069,195.67,195.65,7.84483022]
[1731002083453,11.75796069,195.67,195.63,2.5526]
[1731002083651,11.75796069,195.67,195.64,7.84483022]
[1731002084947,11.75796069,195.67,195.66,7.84483022]
[1731002088648,11.75796069,195.67,195.66,12.39901028]
[1731002091757,11.75796069,195.67,195.66,4.55418006]
[1731002091954,11.75796069,195.67,195.66,12.39901028]
[1731002093957,11.75796069,195.67,195.66,14.95121028]
[1731002096358,11.75796069,195.67,195.66,7.10638006]
[1731002096562,11.75796069,195.67,195.66,14.95121028]
[1731002097357,15.35,195.92,195.66,15.73901028]
[1731002097559,15.35,195.92,195.77,7.84483022]
[1731002097560,10.33213022,195.81,195.77,7.84483022]
[1731002097856,7.84483022,195.8,195.75,7.84483022]
[1731002098057,2.5506,195.79,195.75,7.84483022]
[1731002098564,2.5504,195.8,195.75,7.84483022]
[1731002099258,10.39523022,195.8,195.75,7.84483022]
[1731002099661,18.97658101,196.12,195.79,7.84483022]
[1731002099662,3.34,195.97,195.79,7.84483022]
[1731002099961,7.89588971,195.85,195.78,3.34]
[1731002100155,0.05105949,195.85,195.84,7.84483022]
[1731002100967,0.05105949,195.85,195.83,7.84483022]
[1731002101662,0.05105949,195.85,195.84,7.84483022]
[1731002101968,0.05105949,195.85,195.82,7.84483022]
[1731002102167,0.05105949,195.85,195.84,7.84483022]
[1731002103062,0.05105949,195.85,195.84,11.18483022]
[1731002103460,0.05105949,195.85,195.84,7.84483022]
[1731002103661,0.05105949,195.85,195.84,11.18483022]
[1731002105261,0.05105949,195.85,195.83,3.34]
[1731002105471,0.05105949,195.85,195.83,11.18483022]
[1731002105670,0.05105949,195.85,195.83,13.73483022]
[1731002106368,0.05105949,195.85,195.84,3.34]
[1731002107481,0.05105949,195.85,195.84,11.18483022]
[1731002108061,0.05105949,195.85,195.84,5.8899]
[1731002108264,0.05105949,195.85,195.84,2.5499]
[1731002108470,0.05105949,195.85,195.84,3.34]
[1731002109171,2.5487,195.94,195.84,5.8899]
[1731002109363,7.84483022,195.88,195.84,5.8899]
[1731002109760,7.84483022,195.88,195.84,3.34]
[1731002110564,7.84483022,195.88,195.85,3.34]
[1731002110872,7.84483022,195.88,195.86,3.34]
[1731002112061,7.84483022,195.87,195.82,10.39493022]
[1731002112267,7.84483022,195.85,195.79,2.53272034]